[Event "Late-Titled-Tuesday-Blitz-January-23-2024"]
[Site "Chess.com"]
[Date "2024.01.23"]
[Round "6"]
[White "nindjaxx8"]
[Black "sergiochess83"]
[Result "0-1"]
[WhiteElo "2612"]
[BlackElo "2883"]
[TimeControl "180+1"]
[EndTime "15:04:47 PST"]
[Termination "sergiochess83 won by resignation"]

1. d4 {[%clk 0:03:00.9]} 1... Nf6 {[%clk 0:02:56.1]} 2. c4 {[%clk 0:03:01.1]}
2... e6 {[%clk 0:02:55.7]} 3. Nc3 {[%clk 0:03:00]} 3... Bb4 {[%clk 0:02:55]} 4.
Qc2 {[%clk 0:02:58.8]} 4... d5 {[%clk 0:02:53.4]} 5. cxd5 {[%clk 0:02:56]} 5...
exd5 {[%clk 0:02:53.5]} 6. Bg5 {[%clk 0:02:55.2]} 6... h6 {[%clk 0:02:53.9]} 7.
Bh4 {[%clk 0:02:54.4]} 7... g5 {[%clk 0:02:51.7]} 8. Bg3 {[%clk 0:02:50.6]} 8...
Nc6 {[%clk 0:02:52.3]} 9. e3 {[%clk 0:02:47.9]} 9... h5 {[%clk 0:02:52.9]} 10.
Nf3 {[%clk 0:02:40.7]} 10... h4 {[%clk 0:02:45.1]} 11. Be5 {[%clk 0:02:40.3]}
11... g4 {[%clk 0:02:45.6]} 12. Nd2 {[%clk 0:02:10.1]} 12... Rh5 {[%clk
0:01:56.7]} 13. Bd3 {[%clk 0:01:31]} 13... Kf8 {[%clk 0:01:28.3]} 14. Bf4 {[%clk
0:00:50]} 14... Bd6 {[%clk 0:01:23.1]} 15. Bxd6+ {[%clk 0:00:43]} 15... Qxd6
{[%clk 0:01:24]} 16. a3 {[%clk 0:00:41.5]} 16... a6 {[%clk 0:01:13.2]} 17. Nb3
{[%clk 0:00:33.8]} 17... b6 {[%clk 0:01:08.4]} 18. O-O-O {[%clk 0:00:28.4]}
18... Be6 {[%clk 0:01:01.4]} 19. f3 {[%clk 0:00:19.8]} 19... Ne7 {[%clk
0:00:57.6]} 20. e4 {[%clk 0:00:18.4]} 20... Qf4+ {[%clk 0:00:54.6]} 21. Kb1
{[%clk 0:00:17.6]} 21... gxf3 {[%clk 0:00:50.8]} 22. gxf3 {[%clk 0:00:17.4]}
22... Rg5 {[%clk 0:00:42]} 23. Ne2 {[%clk 0:00:14.1]} 23... Qe3 {[%clk
0:00:41.7]} 24. e5 {[%clk 0:00:12.3]} 24... Nh5 {[%clk 0:00:41]} 25. Rhg1 {[%clk
0:00:06.4]} 25... c5 {[%clk 0:00:27.9]} 26. Rxg5 {[%clk 0:00:05.4]} 26... Qxg5
{[%clk 0:00:27.2]} 27. dxc5 {[%clk 0:00:04.2]} 27... Rc8 {[%clk 0:00:27.2]} 28.
Rg1 {[%clk 0:00:03.2]} 28... Qe3 {[%clk 0:00:25.4]} 29. Bxa6 {[%clk 0:00:03.7]}
29... Bf5 {[%clk 0:00:21.9]} 30. Bxc8 {[%clk 0:00:01.6]} 30... Bxc2+ {[%clk
0:00:21.6]} 31. Kxc2 {[%clk 0:00:02.5]} 31... Qxe2+ {[%clk 0:00:22.2]} 32. Nd2
{[%clk 0:00:03]} 32... Nxc8 {[%clk 0:00:20.6]} 33. cxb6 {[%clk 0:00:03]} 33...
Nxb6 {[%clk 0:00:20.8]} 0-1

[Event "Late-Titled-Tuesday-Blitz-January-23-2024"]
[Site "Chess.com"]
[Date "2024.01.23"]
[Round "6"]
[White "angelgab3"]
[Black "GiorgianBarbosa"]
[Result "1-0"]
[WhiteElo "2694"]
[BlackElo "2450"]
[TimeControl "180+1"]
[EndTime "15:04:47 PST"]
[Termination "angelgab3 won by checkmate"]

1. e4 {[%clk 0:03:00.9]} 1... c5 {[%clk 0:02:03.5]} 2. Nf3 {[%clk 0:02:59.8]}
2... g6 {[%clk 0:02:04.4]} 3. d4 {[%clk 0:03:00]} 3... cxd4 {[%clk 0:02:05.3]}
4. Nxd4 {[%clk 0:03:00.7]} 4... Bg7 {[%clk 0:02:05.8]} 5. c4 {[%clk 0:03:01.4]}
5... Nc6 {[%clk 0:02:06.7]} 6. Be3 {[%clk 0:03:02]} 6... Nf6 {[%clk 0:02:07.2]}
7. Nc3 {[%clk 0:03:02.5]} 7... O-O {[%clk 0:02:07.5]} 8. Be2 {[%clk 0:03:02.8]}
8... Nxd4 {[%clk 0:02:08.1]} 9. Bxd4 {[%clk 0:03:03.1]} 9... d6 {[%clk 0:02:09]}
10. h3 {[%clk 0:03:03.5]} 10... Bd7 {[%clk 0:02:09.3]} 11. O-O {[%clk
0:03:03.7]} 11... Bc6 {[%clk 0:02:09.9]} 12. Qc2 {[%clk 0:03:04.3]} 12... a5
{[%clk 0:02:08.7]} 13. Rad1 {[%clk 0:03:04]} 13... a4 {[%clk 0:02:03.6]} 14. c5
{[%clk 0:03:02.4]} 14... Qa5 {[%clk 0:02:02.6]} 15. cxd6 {[%clk 0:03:02.6]}
15... exd6 {[%clk 0:02:03.5]} 16. a3 {[%clk 0:03:03.1]} 16... Rfe8 {[%clk
0:02:01.4]} 17. f3 {[%clk 0:03:02.9]} 17... Rac8 {[%clk 0:01:52.4]} 18. Qd2
{[%clk 0:02:59.9]} 18... d5 {[%clk 0:01:48.3]} 19. e5 {[%clk 0:02:58.1]} 19...
Nd7 {[%clk 0:01:46.6]} 20. f4 {[%clk 0:02:55.3]} 20... Nc5 {[%clk 0:01:46.7]}
21. Qe3 {[%clk 0:02:50.7]} 21... Bf8 {[%clk 0:01:32.8]} 22. Bf3 {[%clk
0:02:29.4]} 22... Ne6 {[%clk 0:01:18.8]} 23. Bb6 {[%clk 0:02:25.9]} 23... Qa6
{[%clk 0:01:08.4]} 24. Bxd5 {[%clk 0:01:58.2]} 24... Red8 {[%clk 0:00:54.3]} 25.
Bxe6 {[%clk 0:01:46.1]} 25... Rxd1 {[%clk 0:00:52.6]} 26. Bxf7+ {[%clk
0:01:27.1]} 26... Kxf7 {[%clk 0:00:39.5]} 27. Rxd1 {[%clk 0:01:28]} 27... Qc4
{[%clk 0:00:35.9]} 28. Kh2 {[%clk 0:01:19.4]} 28... Bh6 {[%clk 0:00:32.4]} 29.
Rd4 {[%clk 0:01:12.7]} 29... Qb3 {[%clk 0:00:29.6]} 30. Rd2 {[%clk 0:01:10.3]}
30... Kg8 {[%clk 0:00:21.1]} 31. Bc5 {[%clk 0:00:58]} 31... Re8 {[%clk
0:00:17.9]} 32. Ne4 {[%clk 0:00:50.5]} 32... Qe6 {[%clk 0:00:04.4]} 33. Nf6+
{[%clk 0:00:49.3]} 33... Kf7 {[%clk 0:00:04.2]} 34. Nxe8 {[%clk 0:00:49]} 34...
Kxe8 {[%clk 0:00:03.9]} 35. Qd4 {[%clk 0:00:40.9]} 35... Qf5 {[%clk 0:00:04.8]}
36. Qd8+ {[%clk 0:00:36.6]} 36... Kf7 {[%clk 0:00:05.7]} 37. Qe7+ {[%clk
0:00:37.5]} 37... Kg8 {[%clk 0:00:05.4]} 38. Rd8+ {[%clk 0:00:38.4]} 38... Bf8
{[%clk 0:00:03.8]} 39. Rxf8+ {[%clk 0:00:39.3]} 39... Qxf8 {[%clk 0:00:03.9]}
40. Qxf8# {[%clk 0:00:40.2]} 1-0

[Event "Late-Titled-Tuesday-Blitz-January-23-2024"]
[Site "Chess.com"]
[Date "2024.01.23"]
[Round "6"]
[White "IndianSchoolOfSuffering"]
[Black "mightysmasher"]
[Result "1-0"]
[WhiteElo "2452"]
[BlackElo "2570"]
[TimeControl "180+1"]
[EndTime "15:04:48 PST"]
[Termination "IndianSchoolOfSuffering won by checkmate"]

1. c4 {[%clk 0:02:59.6]} 1... e6 {[%clk 0:02:59.4]} 2. d4 {[%clk 0:02:58.5]}
2... d5 {[%clk 0:02:59.5]} 3. Nf3 {[%clk 0:02:58.3]} 3... Be7 {[%clk 0:02:58.8]}
4. g3 {[%clk 0:02:57.4]} 4... Nf6 {[%clk 0:02:58.9]} 5. Bg2 {[%clk 0:02:57.5]}
5... O-O {[%clk 0:02:59.4]} 6. O-O {[%clk 0:02:57.5]} 6... b6 {[%clk 0:02:59.9]}
7. Nc3 {[%clk 0:02:56.3]} 7... Bb7 {[%clk 0:03:00.2]} 8. Ne5 {[%clk 0:02:56.3]}
8... c6 {[%clk 0:02:58.3]} 9. Qa4 {[%clk 0:02:55.7]} 9... a6 {[%clk 0:02:55.3]}
10. cxd5 {[%clk 0:02:54]} 10... Nxd5 {[%clk 0:02:54]} 11. e4 {[%clk 0:02:50.7]}
11... Nxc3 {[%clk 0:02:53.3]} 12. bxc3 {[%clk 0:02:51.6]} 12... b5 {[%clk
0:02:48.5]} 13. Qb3 {[%clk 0:02:47.4]} 13... Nd7 {[%clk 0:02:48.3]} 14. f4
{[%clk 0:02:42.5]} 14... Nxe5 {[%clk 0:02:43.8]} 15. fxe5 {[%clk 0:02:40.3]}
15... c5 {[%clk 0:02:42]} 16. d5 {[%clk 0:02:39.4]} 16... exd5 {[%clk
0:02:41.2]} 17. exd5 {[%clk 0:02:39.2]} 17... c4 {[%clk 0:02:41.5]} 18. Qd1
{[%clk 0:02:39]} 18... Bc5+ {[%clk 0:02:41.5]} 19. Kh1 {[%clk 0:02:38]} 19...
Qe7 {[%clk 0:02:41.5]} 20. Bf4 {[%clk 0:02:34.3]} 20... Rad8 {[%clk 0:02:39.3]}
21. d6 {[%clk 0:02:31.6]} 21... Bxg2+ {[%clk 0:02:37.7]} 22. Kxg2 {[%clk
0:02:32.5]} 22... Qe6 {[%clk 0:02:36.4]} 23. a4 {[%clk 0:02:26.1]} 23... f6
{[%clk 0:02:31.3]} 24. exf6 {[%clk 0:02:25.2]} 24... Rxf6 {[%clk 0:02:25.6]} 25.
Re1 {[%clk 0:02:23.7]} 25... Qd7 {[%clk 0:02:13.2]} 26. Qd5+ {[%clk 0:02:22]}
26... Kh8 {[%clk 0:02:10.6]} 27. Qxc5 {[%clk 0:02:21.1]} 27... Qb7+ {[%clk
0:02:09.2]} 28. Kg1 {[%clk 0:02:16.6]} 28... Rdf8 {[%clk 0:02:00.9]} 29. axb5
{[%clk 0:02:14.3]} 29... axb5 {[%clk 0:01:54.5]} 30. Rad1 {[%clk 0:01:59]} 30...
Qd7 {[%clk 0:01:50.9]} 31. Rd4 {[%clk 0:01:49.4]} 31... h6 {[%clk 0:01:14.6]}
32. Qd5 {[%clk 0:01:33.9]} 32... Kh7 {[%clk 0:01:05.4]} 33. Re7 {[%clk
0:01:26.8]} 33... Qg4 {[%clk 0:00:59]} 34. Qe4+ {[%clk 0:01:26.5]} 34... Kh8
{[%clk 0:00:43.4]} 35. Qe2 {[%clk 0:01:21.3]} 35... Qh3 {[%clk 0:00:33]} 36. Re8
{[%clk 0:01:16.8]} 36... Rxe8 {[%clk 0:00:22.4]} 37. Qxe8+ {[%clk 0:01:15.6]}
37... Kh7 {[%clk 0:00:22.6]} 38. d7 {[%clk 0:01:15.5]} 38... Ra6 {[%clk
0:00:09.4]} 39. Qe4+ {[%clk 0:01:09.5]} 39... Rg6 {[%clk 0:00:04.8]} 40. d8=Q
{[%clk 0:01:03.5]} 40... h5 {[%clk 0:00:04.2]} 41. Rd6 {[%clk 0:01:00.7]} 41...
Qg4 {[%clk 0:00:03.2]} 42. Qde8 {[%clk 0:00:57.6]} 42... h4 {[%clk 0:00:01.9]}
43. Q8xg6+ {[%clk 0:00:56.5]} 43... Qxg6 {[%clk 0:00:01.7]} 44. Qxg6+ {[%clk
0:00:56.4]} 44... Kh8 {[%clk 0:00:02.6]} 45. Rd8# {[%clk 0:00:56.6]} 1-0

[Event "Late-Titled-Tuesday-Blitz-January-23-2024"]
[Site "Chess.com"]
[Date "2024.01.23"]
[Round "6"]
[White "ural58"]
[Black "aghasiyevkamal"]
[Result "1-0"]
[WhiteElo "2463"]
[BlackElo "2613"]
[TimeControl "180+1"]
[EndTime "15:04:48 PST"]
[Termination "ural58 won on time"]

1. e4 {[%clk 0:02:59.2]} 1... e5 {[%clk 0:02:58.5]} 2. f4 {[%clk 0:02:58.5]}
2... d5 {[%clk 0:02:57.8]} 3. exd5 {[%clk 0:02:58]} 3... exf4 {[%clk 0:02:57.4]}
4. Nf3 {[%clk 0:02:57.6]} 4... Nf6 {[%clk 0:02:56.2]} 5. Bb5+ {[%clk 0:02:54.5]}
5... c6 {[%clk 0:02:51.4]} 6. dxc6 {[%clk 0:02:54.4]} 6... Nxc6 {[%clk
0:02:48.4]} 7. Nc3 {[%clk 0:02:54.3]} 7... Bd6 {[%clk 0:02:42.4]} 8. Qe2+ {[%clk
0:02:51]} 8... Be6 {[%clk 0:02:41.5]} 9. Nd4 {[%clk 0:02:51]} 9... O-O {[%clk
0:02:41.2]} 10. Nxe6 {[%clk 0:02:46]} 10... fxe6 {[%clk 0:02:40.8]} 11. Bxc6
{[%clk 0:02:45.7]} 11... bxc6 {[%clk 0:02:40.7]} 12. b3 {[%clk 0:02:46.3]} 12...
e5 {[%clk 0:02:28.3]} 13. Bb2 {[%clk 0:02:45.2]} 13... Qa5 {[%clk 0:02:19.1]}
14. O-O-O {[%clk 0:02:44.5]} 14... Ba3 {[%clk 0:02:12.1]} 15. Rhe1 {[%clk
0:02:42.7]} 15... Bxb2+ {[%clk 0:02:08.3]} 16. Kxb2 {[%clk 0:02:42.3]} 16...
Rfe8 {[%clk 0:02:04.1]} 17. Qc4+ {[%clk 0:02:40.2]} 17... Kh8 {[%clk 0:02:01]}
18. Qxc6 {[%clk 0:02:39.5]} 18... Rad8 {[%clk 0:01:55.1]} 19. Qb5 {[%clk
0:02:34.7]} 19... Qc7 {[%clk 0:01:54.4]} 20. Qc4 {[%clk 0:02:24.8]} 20... Qxc4
{[%clk 0:01:45.7]} 21. bxc4 {[%clk 0:02:24.5]} 21... e4 {[%clk 0:01:46.2]} 22.
d3 {[%clk 0:02:15.1]} 22... e3 {[%clk 0:01:38.7]} 23. Ne2 {[%clk 0:02:13.7]}
23... g5 {[%clk 0:01:38.3]} 24. Rf1 {[%clk 0:02:10]} 24... Ng4 {[%clk
0:01:37.3]} 25. h4 {[%clk 0:02:05.4]} 25... Nf2 {[%clk 0:01:31.3]} 26. Rde1
{[%clk 0:01:59.7]} 26... h6 {[%clk 0:01:23.7]} 27. hxg5 {[%clk 0:01:58.7]} 27...
hxg5 {[%clk 0:01:23.8]} 28. Kc3 {[%clk 0:01:58.1]} 28... Kg7 {[%clk 0:01:18.8]}
29. Rb1 {[%clk 0:01:57.9]} 29... Rd7 {[%clk 0:01:11.8]} 30. Rb5 {[%clk 0:01:57]}
30... Kg6 {[%clk 0:01:08.6]} 31. Rfb1 {[%clk 0:01:56.3]} 31... Rh8 {[%clk
0:01:00.9]} 32. Ra5 {[%clk 0:01:50.9]} 32... Rh2 {[%clk 0:00:51.8]} 33. Ra6+
{[%clk 0:01:50]} 33... Kg7 {[%clk 0:00:34.4]} 34. Rg1 {[%clk 0:01:45]} 34... Rf7
{[%clk 0:00:29.4]} 35. c5 {[%clk 0:01:41]} 35... g4 {[%clk 0:00:22.8]} 36. c6
{[%clk 0:01:34.5]} 36... Kg8 {[%clk 0:00:18.8]} 37. Ra5 {[%clk 0:01:33.9]} 37...
Kf8 {[%clk 0:00:16]} 38. Rc5 {[%clk 0:01:33.6]} 38... Rhh7 {[%clk 0:00:15]} 39.
Nxf4 {[%clk 0:01:31]} 39... Rxf4 {[%clk 0:00:11.2]} 40. c7 {[%clk 0:01:30.8]}
40... Rxc7 {[%clk 0:00:10.6]} 41. Rxc7 {[%clk 0:01:30.9]} 41... Ra4 {[%clk
0:00:09.1]} 42. Kb3 {[%clk 0:01:29.3]} 42... Ra6 {[%clk 0:00:08.5]} 43. Rb7
{[%clk 0:01:22]} 43... g3 {[%clk 0:00:06.6]} 44. Rb4 {[%clk 0:01:18.4]} 44...
Re6 {[%clk 0:00:04.7]} 45. Re1 {[%clk 0:01:15.8]} 45... Ke7 {[%clk 0:00:03.9]}
46. Rb7+ {[%clk 0:01:11.4]} 46... Kf6 {[%clk 0:00:03.6]} 47. Rxa7 {[%clk
0:01:12]} 47... Kf5 {[%clk 0:00:03.4]} 48. Rg7 {[%clk 0:01:11.4]} 48... Kf4
{[%clk 0:00:03.2]} 49. d4 {[%clk 0:01:10.9]} 49... e2 {[%clk 0:00:03.3]} 50. d5
{[%clk 0:01:10.7]} 50... Re8 {[%clk 0:00:02.8]} 51. d6 {[%clk 0:01:10.6]} 1-0

[Event "Late-Titled-Tuesday-Blitz-January-23-2024"]
[Site "Chess.com"]
[Date "2024.01.23"]
[Round "6"]
[White "yobdc"]
[Black "FontVella8"]
[Result "0-1"]
[WhiteElo "2546"]
[BlackElo "2746"]
[TimeControl "180+1"]
[EndTime "15:04:50 PST"]
[Termination "FontVella8 won by resignation"]

1. d4 {[%clk 0:02:56.3]} 1... d5 {[%clk 0:02:59.5]} 2. c4 {[%clk 0:02:56.1]}
2... e6 {[%clk 0:02:59]} 3. Nc3 {[%clk 0:02:55.7]} 3... Nf6 {[%clk 0:02:59.6]}
4. cxd5 {[%clk 0:02:56]} 4... exd5 {[%clk 0:02:59.9]} 5. Bg5 {[%clk 0:02:56.1]}
5... c6 {[%clk 0:02:59.6]} 6. e3 {[%clk 0:02:56.1]} 6... h6 {[%clk 0:02:59.4]}
7. Bh4 {[%clk 0:02:55.7]} 7... Be7 {[%clk 0:02:59.2]} 8. Bd3 {[%clk 0:02:55.9]}
8... O-O {[%clk 0:02:59.5]} 9. Nge2 {[%clk 0:02:52.2]} 9... Re8 {[%clk
0:02:59.6]} 10. Qc2 {[%clk 0:02:48.3]} 10... a5 {[%clk 0:02:58.6]} 11. f3 {[%clk
0:02:41.6]} 11... Na6 {[%clk 0:02:56.6]} 12. a3 {[%clk 0:02:41.3]} 12... Nc7
{[%clk 0:02:55.8]} 13. O-O {[%clk 0:02:39.2]} 13... c5 {[%clk 0:02:56]} 14. Bf2
{[%clk 0:02:31.3]} 14... c4 {[%clk 0:02:54.5]} 15. Bf5 {[%clk 0:02:31.5]} 15...
b5 {[%clk 0:02:55.1]} 16. Bxc8 {[%clk 0:02:02.3]} 16... Qxc8 {[%clk 0:02:55.1]}
17. e4 {[%clk 0:01:34.2]} 17... b4 {[%clk 0:02:55.3]} 18. Na4 {[%clk 0:01:22.6]}
18... Qe6 {[%clk 0:02:32.1]} 19. e5 {[%clk 0:01:18.5]} 19... Nd7 {[%clk
0:02:32.2]} 20. f4 {[%clk 0:01:17.4]} 20... Qc6 {[%clk 0:02:30.2]} 21. axb4
{[%clk 0:01:04.8]} 21... axb4 {[%clk 0:02:29.3]} 22. b3 {[%clk 0:01:05]} 22...
Nb5 {[%clk 0:02:20]} 23. f5 {[%clk 0:01:01.2]} 23... Bf8 {[%clk 0:02:17.9]} 24.
Rfc1 {[%clk 0:00:25.3]} 24... Na3 {[%clk 0:01:59.8]} 25. Qd1 {[%clk 0:00:25.3]}
25... Rxa4 {[%clk 0:01:49.7]} 26. bxa4 {[%clk 0:00:25.6]} 26... b3 {[%clk
0:01:50.3]} 27. Nc3 {[%clk 0:00:17]} 27... b2 {[%clk 0:01:48.5]} 28. Rxa3 {[%clk
0:00:17.3]} 28... Bxa3 {[%clk 0:01:42.7]} 29. Rb1 {[%clk 0:00:17.2]} 29... Rb8
{[%clk 0:01:37.7]} 30. Nb5 {[%clk 0:00:17.2]} 30... Rxb5 {[%clk 0:01:21.4]} 31.
axb5 {[%clk 0:00:17.6]} 31... Qxb5 {[%clk 0:01:22.2]} 32. Qc2 {[%clk 0:00:18.1]}
32... Nb6 {[%clk 0:01:20.6]} 33. Be1 {[%clk 0:00:18.5]} 33... Qa4 {[%clk
0:01:09.4]} 34. Qf2 {[%clk 0:00:16.9]} 34... Qb3 {[%clk 0:01:04]} 35. e6 {[%clk
0:00:17.2]} 35... c3 {[%clk 0:00:43.2]} 36. Bxc3 {[%clk 0:00:14.6]} 36... Qxc3
{[%clk 0:00:41.8]} 37. Qe1 {[%clk 0:00:11.3]} 37... Qxe1+ {[%clk 0:00:38.9]} 38.
Rxe1 {[%clk 0:00:12.2]} 38... fxe6 {[%clk 0:00:39.2]} 39. fxe6 {[%clk
0:00:12.3]} 39... Kf8 {[%clk 0:00:38.2]} 40. Kf2 {[%clk 0:00:10.7]} 40... Na4
{[%clk 0:00:37.6]} 41. Ke3 {[%clk 0:00:09.9]} 41... Nc3 {[%clk 0:00:37.7]} 42.
Kd3 {[%clk 0:00:09.7]} 42... b1=Q+ {[%clk 0:00:37.8]} 43. Rxb1 {[%clk 0:00:10]}
43... Nxb1 {[%clk 0:00:38.7]} 44. Kc2 {[%clk 0:00:10.7]} 44... Ke7 {[%clk
0:00:38.4]} 45. Kxb1 {[%clk 0:00:11.2]} 45... Kxe6 {[%clk 0:00:38.9]} 46. Kc2
{[%clk 0:00:12.1]} 46... Bd6 {[%clk 0:00:39.1]} 47. Kd3 {[%clk 0:00:13]} 47...
Bxh2 {[%clk 0:00:39]} 48. Ke2 {[%clk 0:00:13.9]} 48... Kf5 {[%clk 0:00:39.2]}
49. Kf3 {[%clk 0:00:14.8]} 49... h5 {[%clk 0:00:38.8]} 0-1

[Event "Late-Titled-Tuesday-Blitz-January-23-2024"]
[Site "Chess.com"]
[Date "2024.01.23"]
[Round "6"]
[White "chegueps"]
[Black "Bkmzzzzz"]
[Result "1-0"]
[WhiteElo "2672"]
[BlackElo "2424"]
[TimeControl "180+1"]
[EndTime "15:04:50 PST"]
[Termination "chegueps won on time"]

1. d4 {[%clk 0:03:00.9]} 1... d5 {[%clk 0:02:58.2]} 2. Nf3 {[%clk 0:03:01.8]}
2... Nf6 {[%clk 0:02:56.6]} 3. e3 {[%clk 0:02:58]} 3... e6 {[%clk 0:02:56]} 4.
Bd3 {[%clk 0:02:58.6]} 4... Be7 {[%clk 0:02:55.9]} 5. O-O {[%clk 0:02:59.4]}
5... O-O {[%clk 0:02:56.5]} 6. b3 {[%clk 0:03:00]} 6... c5 {[%clk 0:02:56.2]} 7.
Bb2 {[%clk 0:03:00.9]} 7... b6 {[%clk 0:02:52]} 8. Nbd2 {[%clk 0:03:00.9]} 8...
Bb7 {[%clk 0:02:46.6]} 9. Ne5 {[%clk 0:03:00.8]} 9... Nc6 {[%clk 0:02:45.5]} 10.
f4 {[%clk 0:03:01.1]} 10... Nxe5 {[%clk 0:02:16.8]} 11. fxe5 {[%clk 0:03:00.6]}
11... Ne4 {[%clk 0:02:17.5]} 12. Nxe4 {[%clk 0:02:42.4]} 12... dxe4 {[%clk
0:02:18.4]} 13. Bc4 {[%clk 0:02:42.3]} 13... Qd7 {[%clk 0:02:12.1]} 14. Qe2
{[%clk 0:02:36.9]} 14... a6 {[%clk 0:02:11.8]} 15. a4 {[%clk 0:02:36.7]} 15...
f5 {[%clk 0:01:51]} 16. exf6 {[%clk 0:02:24.5]} 16... Bxf6 {[%clk 0:01:51]} 17.
Rad1 {[%clk 0:02:22.4]} 17... Qe7 {[%clk 0:01:33.9]} 18. Ba3 {[%clk 0:02:16.7]}
18... Kh8 {[%clk 0:01:17.6]} 19. Qh5 {[%clk 0:02:03.5]} 19... Rac8 {[%clk
0:01:06.3]} 20. Qg4 {[%clk 0:01:59.4]} 20... Rfe8 {[%clk 0:00:57.7]} 21. Qh5
{[%clk 0:01:39.1]} 21... Qc7 {[%clk 0:00:22.6]} 22. dxc5 {[%clk 0:01:23.3]}
22... bxc5 {[%clk 0:00:22.6]} 23. Rxf6 {[%clk 0:00:57.4]} 23... gxf6 {[%clk
0:00:21.9]} 24. Bb2 {[%clk 0:00:58.3]} 24... e5 {[%clk 0:00:20.3]} 25. Rf1
{[%clk 0:00:56.6]} 25... Qg7 {[%clk 0:00:18.8]} 26. Qh4 {[%clk 0:00:47.9]} 26...
Rf8 {[%clk 0:00:18.4]} 27. Be6 {[%clk 0:00:45.8]} 27... Rc6 {[%clk 0:00:16.5]}
28. Bf5 {[%clk 0:00:44.2]} 28... Rd6 {[%clk 0:00:16.9]} 29. Bc3 {[%clk
0:00:43.6]} 29... Bc8 {[%clk 0:00:14.3]} 30. Bxe4 {[%clk 0:00:43.2]} 30... Be6
{[%clk 0:00:14]} 31. Bd3 {[%clk 0:00:39.7]} 31... Bd5 {[%clk 0:00:13.4]} 32.
Bxe5 {[%clk 0:00:37.4]} 32... fxe5 {[%clk 0:00:12.9]} 33. Rxf8+ {[%clk
0:00:36.6]} 33... Bg8 {[%clk 0:00:13.5]} 34. Rf3 {[%clk 0:00:29.9]} 34... Rd7
{[%clk 0:00:02]} 35. Rg3 {[%clk 0:00:23.5]} 1-0

[Event "Late-Titled-Tuesday-Blitz-January-23-2024"]
[Site "Chess.com"]
[Date "2024.01.23"]
[Round "6"]
[White "ukchessbomber"]
[Black "Eloist"]
[Result "1-0"]
[WhiteElo "2691"]
[BlackElo "2433"]
[TimeControl "180+1"]
[EndTime "15:04:51 PST"]
[Termination "ukchessbomber won on time"]

1. c4 {[%clk 0:03:00.1]} 1... e5 {[%clk 0:02:59.2]} 2. b3 {[%clk 0:03:00.6]}
2... g6 {[%clk 0:02:46.1]} 3. Bb2 {[%clk 0:03:01.5]} 3... Bg7 {[%clk 0:02:46.2]}
4. e3 {[%clk 0:03:02.4]} 4... Ne7 {[%clk 0:02:36.3]} 5. Nf3 {[%clk 0:03:02.4]}
5... d6 {[%clk 0:02:34.6]} 6. Be2 {[%clk 0:03:01.5]} 6... O-O {[%clk 0:02:34]}
7. d4 {[%clk 0:02:58.8]} 7... e4 {[%clk 0:02:30.7]} 8. Nfd2 {[%clk 0:02:48.9]}
8... f5 {[%clk 0:02:29.4]} 9. O-O {[%clk 0:02:49.5]} 9... c6 {[%clk 0:02:27.2]}
10. b4 {[%clk 0:02:50.1]} 10... a5 {[%clk 0:02:22.4]} 11. a3 {[%clk 0:02:49.6]}
11... axb4 {[%clk 0:02:20.3]} 12. axb4 {[%clk 0:02:49.7]} 12... Rxa1 {[%clk
0:02:20.4]} 13. Bxa1 {[%clk 0:02:50.6]} 13... Na6 {[%clk 0:02:08.3]} 14. Bc3
{[%clk 0:02:45.9]} 14... Nc7 {[%clk 0:01:59]} 15. f3 {[%clk 0:02:32.6]} 15... d5
{[%clk 0:01:54.9]} 16. cxd5 {[%clk 0:02:30.4]} 16... Nexd5 {[%clk 0:01:44.6]}
17. Bc4 {[%clk 0:02:29.1]} 17... Be6 {[%clk 0:01:34.6]} 18. fxe4 {[%clk
0:02:22.8]} 18... Nxe3 {[%clk 0:01:31.2]} 19. Bxe6+ {[%clk 0:02:19.1]} 19...
Nxe6 {[%clk 0:01:31.2]} 20. Qb3 {[%clk 0:02:19.4]} 20... Nxf1 {[%clk 0:01:18.8]}
21. Qxe6+ {[%clk 0:02:18.4]} 21... Kh8 {[%clk 0:01:19.3]} 22. Nxf1 {[%clk
0:01:58.4]} 22... Bxd4+ {[%clk 0:00:48.5]} 23. Kh1 {[%clk 0:01:58.6]} 23... fxe4
{[%clk 0:00:44.5]} 24. Ng3 {[%clk 0:01:37]} 24... Bxc3 {[%clk 0:00:18.1]} 25.
Nxc3 {[%clk 0:01:37.9]} 25... Qd4 {[%clk 0:00:14.6]} 26. Nce2 {[%clk 0:01:07.9]}
26... Qa1+ {[%clk 0:00:12.3]} 27. Ng1 {[%clk 0:01:07.9]} 27... Qd4 {[%clk
0:00:08.7]} 28. h4 {[%clk 0:00:41.3]} 28... Qxb4 {[%clk 0:00:08.4]} 29. h5
{[%clk 0:00:41.3]} 29... Qd4 {[%clk 0:00:06.8]} 30. h6 {[%clk 0:00:41]} 30...
Qf6 {[%clk 0:00:05.8]} 31. Qxe4 {[%clk 0:00:39.1]} 31... b5 {[%clk 0:00:05.6]}
32. Nf3 {[%clk 0:00:37.3]} 32... c5 {[%clk 0:00:04.8]} 33. Qb7 {[%clk
0:00:33.4]} 33... b4 {[%clk 0:00:03.8]} 34. Ne4 {[%clk 0:00:33.9]} 34... Qf7
{[%clk 0:00:03.1]} 35. Qb6 {[%clk 0:00:25.9]} 35... b3 {[%clk 0:00:02.7]} 36.
Qxc5 {[%clk 0:00:23.2]} 1-0